bitfinex-derivatives/quotes_SOLF0:USTF0_20250625
["timestamp","ask_amount","ask_price","bid_price","bid_amount"]
[1750832461699,4.32468367,146.0,145.97,6.8469]
[1750832461993,11.76693484,145.99,145.96,6.8473]
[1750832462200,6.8465,145.99,145.96,6.8473]
[1750832462904,3.39845542,145.99,145.92,3.39845542]
[1750832463206,4.95701735,145.98,145.92,3.39845542]
[1750832463407,6.8472,145.97,145.94,6.8483]
[1750832464704,4.32114481,146.0,145.94,3.39845542]
[1750832464912,34.8,146.01,145.94,38.19845542]
[1750832465207,4.95280972,146.0,145.98,6.8466]
[1750832465404,34.8,146.04,145.96,3.39845542]
[1750832465810,41.6442,146.04,146.0,6.8453]
[1750832466019,41.6442,146.04,145.98,3.39845542]
[1750832466020,34.8,146.04,145.98,3.39845542]
[1750832466221,11.79422474,146.06,145.98,38.19845542]
[1750832466406,38.19845542,146.07,146.0,3.39845542]
[1750832466808,34.8,146.07,146.0,3.39845542]
[1750832467209,34.8,146.07,146.04,6.8438]
[1750832467614,34.8,146.07,145.98,34.8]
[1750832467818,6.8434,146.05,145.99,3.39845542]
[1750832468020,38.19845542,146.07,145.98,34.8]
[1750832468221,6.8433,146.06,146.02,6.8445]
[1750832468420,34.8,146.07,146.02,6.8445]
[1750832468621,34.8,146.07,146.0,3.39845542]
[1750832469014,34.8,146.07,146.04,6.8438]
[1750832469219,34.8,146.07,146.0,3.39845542]
[1750832469824,34.8,146.07,146.04,6.8438]
[1750832470031,34.8,146.07,146.0,3.39845542]
[1750832470332,34.8,146.07,146.05,6.8432]
[1750832470826,34.8,146.07,146.02,3.39845542]
[1750832471024,38.33845542,146.1,145.99,62.0]
[1750832471231,34.94,146.1,146.03,3.39845542]
[1750832471431,34.94,146.1,146.07,6.8421]
[1750832473433,41.7811,146.1,146.06,6.8428]
[1750832473743,34.94,146.1,146.06,6.8428]
[1750832475140,6.8419,146.09,146.05,6.8433]
[1750832475533,6.8419,146.09,146.04,34.92]
[1750832475742,6.8419,146.09,146.06,6.8429]
[1750832476332,6.8419,146.09,146.05,6.8432]
[1750832476537,6.8421,146.08,146.04,34.92]
[1750832476738,6.8421,146.08,146.04,6.8435]
[1750832477542,6.8426,146.07,146.04,6.8435]
[1750832478244,38.33845542,146.1,146.02,3.39845542]
[1750832478536,6.8424,146.08,146.04,6.8436]
[1750832478941,6.8424,146.08,146.02,3.39845542]
[1750832479346,6.8424,146.08,146.05,6.8431]
[1750832479846,6.8417,146.09,146.05,6.8431]
[1750832480048,38.33845542,146.1,146.05,6.8431]
[1750832481145,6.8421,146.08,146.05,6.8431]
[1750832482146,6.8416,146.09,146.02,3.39845542]
[1750832482547,34.94,146.1,146.02,3.39845542]
[1750832482737,41.7812,146.1,146.01,37.2303]
[1750832482941,41.7812,146.1,146.04,3.39845542]
[1750832483336,41.7812,146.1,146.07,6.8421]
[1750832484150,34.94,146.1,146.08,6.842]
[1750832484552,34.94,146.1,146.04,3.39845542]
[1750832485151,34.94,146.1,146.08,6.8419]
[1750832485352,34.94,146.1,146.04,3.39845542]
[1750832485653,34.94,146.1,146.08,6.8417]
[1750832485952,34.94,146.1,146.04,3.39845542]
[1750832486945,34.94,146.1,146.07,6.8425]
[1750832487750,41.7813,146.1,146.07,6.8425]
[1750832488448,34.94,146.1,146.04,3.39845542]
[1750832488640,34.94,146.1,146.01,5.70875542]
[1750832488842,38.33845542,146.1,146.03,3.39845542]
[1750832489057,45.17995542,146.1,146.06,6.8427]
[1750832490045,41.7815,146.1,146.07,6.8424]
[1750832490542,34.94,146.1,146.03,3.39845542]
[1750832490758,34.94,146.1,146.07,6.8422]
[1750832491356,41.7812,146.1,146.07,6.8422]
[1750832492257,41.7812,146.1,146.06,6.8427]
[1750832494361,6.8417,146.09,146.02,8.12915542]
[1750832494561,34.94,146.1,146.02,8.12915542]
[1750832495558,6.8418,146.09,146.06,6.8426]
[1750832496864,4.93076474,146.09,146.01,2.3103]
[1750832497059,3.39845542,146.08,146.01,2.3103]
[1750832497458,6.8425,146.07,146.04,6.8436]
[1750832497960,38.31845542,146.06,145.99,3.39845542]
[1750832498360,6.8435,146.05,146.02,6.8446]
[1750832498955,6.8439,146.04,146.01,6.8451]
[1750832499755,6.8445,146.03,146.0,6.8455]
[1750832499966,3.39845542,146.04,145.96,53.88211232]
[1750832500363,6.8445,146.03,145.99,6.8458]
[1750832500663,3.39845542,146.02,145.99,6.8458]
[1750832501463,38.57845542,146.02,145.99,6.8458]
[1750832501663,50.36537764,146.02,145.99,6.8458]
[1750832501854,45.42335542,146.02,145.99,6.8458]
[1750832503061,4.94224412,146.01,145.93,6.8196]
[1750832503368,4.95388666,146.0,145.93,10.21805542]
[1750832503660,14.65172258,146.01,145.98,6.8464]
[1750832503855,4.95182103,146.0,145.98,6.8464]
[1750832504057,10.24375542,146.01,145.98,6.8464]
[1750832504266,4.95187163,146.0,145.98,6.8464]
[1750832504463,4.95215852,145.99,145.93,10.21805542]
[1750832504663,11.25379079,146.0,145.93,10.21805542]
[1750832504966,4.9524487,145.99,145.96,6.8472]
[1750832505164,11.25379079,146.0,145.96,6.8472]
[1750832505366,11.79865822,145.99,145.96,6.8472]
[1750832505565,6.8462,145.99,145.96,6.8472]
[1750832505970,6.8462,145.99,145.93,10.21805542]
[1750832505971,4.95255589,145.98,145.92,3.39845542]
[1750832506163,4.95218146,146.0,145.94,3.39845542]
[1750832506364,35.18,146.01,145.94,3.39845542]
[1750832506565,4.93105448,146.0,145.98,6.8464]
[1750832506871,4.93112099,145.99,145.92,3.39845542]
[1750832507066,6.846,146.0,145.97,6.8471]
[1750832507264,39.57441017,146.01,145.94,38.57845542]
[1750832507468,4.93091949,146.0,145.94,38.57845542]
[1750832507671,39.57441017,146.01,145.96,3.39845542]
[1750832507970,4.93009622,146.03,145.96,3.39845542]
[1750832508174,39.56025307,146.04,145.98,3.39845542]
[1750832508373,4.92960157,146.03,145.98,3.39845542]
[1750832508569,38.57845542,146.04,145.96,3.39845542]
[1750832508772,6.8448,146.02,145.99,6.846]
[1750832509076,4.9351391,146.01,145.99,6.846]
[1750832509275,6.8448,146.02,145.99,6.846]
[1750832509774,4.93538978,146.01,145.99,6.846]
[1750832510070,6.8454,146.01,145.98,6.8465]
[1750832510777,6.8458,146.0,145.97,6.847]
[1750832511369,6.8458,146.0,145.98,6.8466]
[1750832513578,11.78798711,146.01,145.98,6.8466]
[1750832513985,4.94248711,146.01,145.96,6.8473]
[1750832514278,38.57845542,146.0,145.93,35.18]
[1750832514481,43.52094253,146.0,145.93,35.18]
[1750832515175,3.39845542,145.98,145.9,45.56035542]
[1750832515376,3.39845542,145.98,145.93,6.8487]
[1750832516378,6.8474,145.97,145.94,6.8485]
[1750832517173,10.24525542,145.98,145.95,6.8481]
[1750832518081,3.39845542,145.98,145.95,6.8481]
[1750832520791,6.8464,145.99,145.96,6.8475]
[1750832521683,38.57845542,146.0,145.91,2.2893]
[1750832521886,38.57845542,146.0,145.92,3.39845542]
[1750832522892,6.8465,145.99,145.92,3.39845542]
[1750832523089,38.57845542,146.0,145.92,3.39845542]
[1750832523594,45.42445542,146.0,145.97,6.8468]
[1750832523792,38.57845542,146.0,145.92,3.39845542]
[1750832524191,38.59845542,146.03,145.94,3.39845542]
[1750832524394,38.59845542,146.03,145.96,3.39845542]
[1750832524593,35.2,146.03,145.96,3.39845542]
[1750832524795,42.0446,146.03,146.0,6.8454]
[1750832526597,42.0446,146.03,146.01,6.8453]
[1750832526892,35.2,146.03,145.96,3.39845542]
[1750832527797,42.0446,146.03,146.0,6.8457]
[1750832528896,35.2,146.03,146.01,6.8453]
[1750832529893,42.0445,146.03,146.01,6.8453]
[1750832530394,35.2,146.03,146.01,6.8453]
[1750832532096,35.2,146.03,146.02,6.8448]
[1750832533990,3.39845542,146.06,146.04,6.8436]
[1750832534198,48.7386,146.07,146.04,6.8436]
[1750832534798,41.896,146.07,146.05,6.8434]
[1750832535003,34.94,146.07,146.01,3.39845542]
[1750832535395,34.94,146.07,146.06,6.8429]
[1750832537402,34.94,146.07,146.05,6.8432]
[1750832538004,34.94,146.07,146.06,6.8429]
[1750832538609,34.94,146.07,146.05,6.8433]
[1750832541509,39.89250443,146.07,146.05,6.8433]
[1750832541703,46.73500443,146.07,146.04,6.8437]
[1750832541909,43.29095985,146.07,146.0,2.2583]
[1750832542410,38.33845542,146.07,146.0,2.2583]
[1750832542611,6.8432,146.06,146.03,6.8442]
[1750832542906,38.33845542,146.07,146.0,2.2583]
[1750832543108,3.39845542,146.05,145.99,3.39845542]
[1750832543305,3.39845542,146.05,145.98,34.94]
[1750832543511,3.39845542,146.02,145.94,34.94]
[1750832543805,34.94,146.02,145.94,34.94]
[1750832544116,3.39845542,146.0,145.98,6.8464]
[1750832544304,3.39845542,146.0,145.94,34.94]
[1750832544704,3.39845542,146.0,145.97,6.8471]
[1750832544705,10.24435542,146.0,145.97,6.8471]
[1750832545503,10.24435542,146.0,145.96,6.8474]
[1750832545711,6.8464,145.99,145.96,6.8474]
[1750832547512,6.8464,145.99,145.95,6.8479]
[1750832547710,10.24535542,145.98,145.95,6.8479]
[1750832548106,38.33845542,145.98,145.93,6.849]
[1750832548304,38.33845542,145.98,145.89,2.239]
[1750832548506,3.39845542,145.96,145.89,2.239]
[1750832548815,15.18594582,145.96,145.92,6.8491]
[1750832549011,10.24605542,145.96,145.92,6.8491]
[1750832549310,15.18594582,145.96,145.92,6.8491]
[1750832549713,3.39845542,145.96,145.92,6.8491]
[1750832549909,8.33836662,145.96,145.92,6.8491]
[1750832550108,3.39845542,145.96,145.93,6.8489]
[1750832550304,38.33845542,145.98,145.9,3.39845542]
[1750832551010,4.93593133,145.99,145.92,3.39845542]
[1750832551206,4.93593133,146.0,145.94,3.39845542]
[1750832551406,50.11998675,146.01,145.94,3.39845542]
[1750832551617,4.93593133,146.0,145.94,3.39845542]
[1750832551801,45.18405542,146.01,145.94,3.39845542]
[1750832552413,43.27438675,146.01,145.98,6.8464]
[1750832552616,38.33845542,146.01,145.98,6.8464]
[1750832553009,45.18375542,146.01,145.98,6.8464]
[1750832553909,45.18375542,146.01,145.97,6.847]
[1750832555013,3.39845542,145.99,145.96,6.8474]
[1750832555315,3.39845542,145.99,145.93,4.7208]
[1750832556117,3.39845542,145.99,145.96,6.8472]
[1750832559018,10.24505542,145.99,145.93,4.7208]
[1750832559717,10.24505542,145.99,145.93,2.3824]
[1750832560020,10.24505542,145.99,145.95,6.8478]
[1750832560519,6.8468,145.98,145.95,6.8478]
[1750832561416,11.76872632,145.99,145.95,6.8478]
[1750832561617,15.16718174,145.99,145.95,6.8478]
[1750832561812,16.14051399,146.0,145.93,5.78085542]
[1750832562016,38.33845542,146.01,145.93,5.78085542]
[1750832562421,45.18395542,146.01,145.97,6.8467]
[1750832562621,43.2600747,146.01,145.97,6.8467]
[1750832562822,38.33845542,146.01,145.97,6.8467]
[1750832563023,45.18385542,146.01,145.97,6.8467]
[1750832563614,50.1054747,146.01,145.97,6.8467]
[1750832563813,6.8459,146.0,145.97,6.8467]
[1750832568027,39.85882701,146.01,145.93,5.78085542]
[1750832568225,39.85882701,146.01,145.94,2.3454]
[1750832569224,39.85882701,146.01,145.98,6.8463]
[1750832569528,41.7856,146.01,145.98,6.8463]
[1750832570228,6.8458,146.0,145.98,6.8463]
[1750832570925,6.8468,145.98,145.95,6.8478]
[1750832571130,6.8468,145.98,145.93,2.3824]
[1750832571633,6.8468,145.98,145.95,6.8478]
[1750832572028,6.8464,145.99,145.93,2.3824]
[1750832572434,6.8464,145.99,145.96,6.8475]
[1750832572624,6.8467,145.98,145.96,6.8475]
[1750832573227,6.8464,145.99,145.96,6.8475]
[1750832575930,6.8467,145.98,145.95,6.8479]
[1750832576132,6.8467,145.98,145.93,2.3824]
[1750832576338,3.39845542,146.0,145.93,2.3824]
[1750832576632,6.8464,145.99,145.96,6.8473]
[1750832579439,10.24535542,145.98,145.95,6.8479]
[1750832579928,10.24535542,145.98,145.91,38.33845542]
[1750832582139,6.8465,145.99,145.96,6.8474]
[1750832582542,4.92631859,146.0,145.99,6.8462]
[1750832582742,34.88,146.01,145.95,3.39845542]
[1750832583135,34.88,146.01,145.96,4.5468]
[1750832584043,34.88,146.01,146.0,6.8458]
[1750832585137,39.8416971,146.01,146.0,6.8458]
[1750832585846,39.8416971,146.01,145.99,6.8461]
[1750832586044,34.88,146.01,145.99,6.8461]
[1750832586643,4.97102975,146.0,145.93,4.7864]
[1750832586832,38.27845542,146.01,145.93,4.7864]
[1750832587037,11.81714118,146.0,145.97,6.8468]
[1750832587241,6.846,146.0,145.97,6.8468]
[1750832587938,4.97962238,145.99,145.97,6.8468]
[1750832588247,6.846,146.0,145.97,6.8468]
[1750832588446,4.97962238,145.99,145.97,6.8468]
[1750832588740,6.8463,145.99,145.97,6.8468]
[1750832588940,4.98020846,145.98,145.96,6.8475]
[1750832589135,6.8463,145.99,145.96,6.8475]
[1750832589443,4.98009958,145.98,145.93,4.7864]
[1750832589646,4.98009958,145.97,145.92,34.88]
[1750832589846,3.39845542,145.99,145.92,34.88]
[1750832589847,9.02214302,145.99,145.92,34.88]
[1750832590144,9.02214302,145.99,145.9,16.13332116]
[1750832590145,3.39845542,145.97,145.95,6.8479]
[1750832590342,38.27845542,145.97,145.9,16.13332116]
[1750832590546,38.27845542,145.97,145.94,6.8483]
[1750832590547,4.9804022,145.96,145.94,6.8483]
[1750832590844,45.12585542,145.97,145.94,6.8483]
[1750832591042,4.98075012,145.96,145.94,6.8483]
[1750832591242,45.12585542,145.97,145.94,6.8483]
[1750832591444,4.98075343,145.96,145.94,6.8483]
[1750832591646,45.12585542,145.97,145.94,6.8483]
[1750832591840,4.98079004,145.96,145.94,6.8483]
[1750832592042,38.27845542,145.97,145.95,6.848]
[1750832592242,4.98079875,145.96,145.95,6.848]
[1750832592437,4.98079875,145.96,145.9,3.39845542]
[1750832592645,45.12565542,145.97,145.94,6.8483]
[1750832592845,4.98079965,145.96,145.94,6.8483]
[1750832593039,45.12565542,145.97,145.95,6.8481]
[1750832593248,4.980416,145.96,145.95,6.8481]
[1750832593940,4.980416,145.96,145.94,6.8484]
[1750832594136,45.12565542,145.97,145.94,6.8484]
[1750832594345,4.98000873,145.96,145.94,6.8484]
[1750832594544,45.12565542,145.97,145.94,6.8484]
[1750832594844,4.98000873,145.96,145.94,6.8484]
[1750832595044,4.98338978,145.95,145.94,6.8484]
[1750832595344,45.12565542,145.97,145.94,6.8484]
[1750832595540,4.96730901,145.96,145.94,6.8484]
[1750832595746,45.12565542,145.97,145.94,6.8484]
[1750832595941,4.9672994,145.96,145.94,6.8484]
[1750832596141,45.12565542,145.97,145.94,6.8484]
[1750832596341,4.9672994,145.96,145.95,6.8481]
[1750832598351,34.88,145.97,145.95,6.8481]
[1750832598551,4.96654858,145.96,145.95,6.8481]
[1750832601258,4.96598091,145.96,145.95,6.8481]
[1750832602057,38.21845542,146.0,145.92,3.39845542]
[1750832602442,4.39891456,145.99,145.93,34.82]
[1750832603250,4.9650326,145.98,145.97,6.8468]
[1750832604951,34.82,146.0,145.99,6.8462]
[1750832605153,44.18419608,146.0,145.99,6.8462]
[1750832608059,44.20203643,146.0,145.99,6.8462]
[1750832610558,44.20201621,146.0,145.99,6.8462]
[1750832610753,44.20188608,146.0,145.99,6.8462]
[1750832613753,44.21754413,146.0,145.99,6.8462]
[1750832616472,44.25981048,146.0,145.99,6.8462]
[1750832618768,44.25981048,146.0,145.95,3.39845542]
[1750832618969,5.02596025,145.99,145.95,3.39845542]
[1750832619170,34.82,146.0,145.95,3.39845542]
[1750832619369,5.02577064,145.99,145.95,3.39845542]
[1750832619572,34.82,146.0,145.95,3.39845542]
[1750832619774,5.02535095,145.99,145.95,3.39845542]
[1750832619974,34.82,146.0,145.95,3.39845542]
[1750832620173,5.02553271,145.99,145.95,3.39845542]
[1750832620473,34.82,146.0,145.98,6.8464]
[1750832620771,5.02556916,145.99,145.98,6.8464]
[1750832622174,5.02123987,145.99,145.98,6.8464]
[1750832624979,5.02134448,145.99,145.98,6.8464]
[1750832625279,5.02134448,145.99,145.97,6.8469]
[1750832625478,41.6658,146.0,145.97,6.8469]
[1750832625679,5.02110834,145.99,145.97,6.8469]
[1750832625882,41.6658,146.0,145.97,6.8469]
[1750832626083,5.02114521,145.99,145.98,6.8467]
[1750832627884,5.02145059,145.99,145.98,6.8467]
[1750832628493,5.02145059,145.99,145.96,6.8475]
[1750832628683,5.02145059,145.98,145.93,37.1176]
[1750832628988,5.02145059,145.97,145.95,6.8478]
[1750832629182,6.847,145.98,145.95,6.8478]
[1750832629383,5.02245076,145.97,145.95,6.8478]
[1750832629582,6.8464,145.99,145.96,6.8473]
[1750832629784,5.02243073,145.98,145.96,6.8473]
[1750832630091,5.02243073,145.97,145.96,6.8473]
[1750832630683,5.02343063,145.97,145.96,6.8473]
[1750832631883,5.02343063,145.97,145.95,6.848]
[1750832632079,6.8468,145.98,145.95,6.848]
[1750832632284,16.31497885,145.97,145.93,34.82]
[1750832632480,5.02371525,145.96,145.94,6.8483]
[1750832632682,6.8473,145.97,145.94,6.8483]
[1750832632886,5.0244381,145.96,145.94,6.8483]
[1750832633089,6.8473,145.97,145.94,6.8483]
[1750832633296,5.02419526,145.96,145.94,6.8483]
[1750832633589,6.8473,145.97,145.94,6.8483]
[1750832633789,5.02419567,145.96,145.94,6.8483]
[1750832633989,6.8473,145.97,145.94,6.8483]
[1750832634181,5.02418602,145.96,145.94,6.8483]
[1750832634380,6.8473,145.97,145.94,6.8483]
[1750832634590,5.02414871,145.96,145.94,6.8483]
[1750832634788,6.8473,145.97,145.94,6.8483]
[1750832634990,5.01264202,145.96,145.94,6.8483]
[1750832635195,6.8473,145.97,145.94,6.8483]
[1750832635394,5.01242097,145.96,145.94,6.8483]
[1750832635595,6.8473,145.97,145.94,6.8483]
[1750832635797,5.01236075,145.96,145.94,6.8483]
[1750832635984,6.8473,145.97,145.94,6.8483]
[1750832636189,5.01236117,145.96,145.95,6.8481]
[1750832636389,5.01236075,145.96,145.95,6.8481]
[1750832636797,34.82,146.0,145.98,6.8465]
[1750832636996,9.44550967,145.99,145.98,6.8465]
[1750832637699,9.44582087,145.99,145.98,6.8465]
[1750832638000,5.01127795,145.99,145.98,6.8465]
[1750832639190,34.82,146.0,145.99,6.8462]
[1750832639497,44.26687388,146.0,145.99,6.8462]
[1750832641796,9.44687388,146.0,145.99,6.8462]
[1750832642001,5.6067239,146.04,146.03,6.8443]
[1750832642202,9.45782455,146.04,146.03,6.8443]
[1750832642402,15.06454845,146.04,146.03,6.8443]
[1750832642792,9.45782455,146.04,146.03,6.8443]
[1750832644899,9.46307648,146.04,146.03,6.8443]
[1750832646001,3.39845542,146.12,146.03,38.19845542]
[1750832646200,3.39845542,146.12,146.05,3.39845542]
[1750832646395,10.23865542,146.12,146.08,6.8419]
[1750832647001,10.23865542,146.12,146.09,6.8415]
[1750832647201,10.23865542,146.12,146.05,3.39845542]
[1750832648102,10.23865542,146.12,146.08,6.8417]
[1750832648300,6.8406,146.11,146.08,6.8417]
[1750832654513,6.8403,146.12,146.08,6.8417]
[1750832655210,6.8406,146.11,146.08,6.8417]
[1750832655613,34.8,146.13,146.08,6.8417]
[1750832655807,6.8404,146.12,146.09,6.8415]
[1750832657214,6.8404,146.12,146.08,6.8418]
[1750832658016,6.8408,146.11,146.08,6.8418]
[1750832660111,6.8411,146.1,146.07,6.8423]
[1750832660513,34.74,146.09,146.02,3.39845542]
[1750832660713,6.8425,146.07,146.04,6.8438]
[1750832662220,6.843,146.06,146.03,6.8441]
[1750832663122,37.0294,146.09,146.03,3.39845542]
[1750832664216,6.8424,146.08,146.05,6.8432]
[1750832664618,6.8424,146.08,146.03,3.39845542]
[1750832664811,40.42785542,146.09,146.02,34.74]
[1750832665112,6.8426,146.07,146.04,6.8436]
[1750832665520,34.74,146.09,146.03,3.39845542]
[1750832666619,34.74,146.09,146.08,6.842]
[1750832669020,34.74,146.09,146.07,6.8423]
[1750832673223,34.74,146.09,146.08,6.842]
[1750832673727,6.8407,146.11,146.08,6.842]
[1750832674023,42.90735542,146.12,146.07,6.8423]
[1750832674519,3.39845542,146.1,146.07,6.8423]
[1750832674922,6.8416,146.09,146.06,6.8427]
[1750832676222,6.8416,146.09,146.07,6.8424]
[1750832676925,10.23975542,146.1,146.07,6.8424]
[1750832679427,6.8417,146.09,146.06,6.8427]
[1750832680425,6.8417,146.09,146.07,6.8424]
[1750832682021,10.21445699,146.1,146.07,6.8424]
[1750832682221,14.56226854,146.1,146.07,6.8424]
[1750832682527,10.21445699,146.1,146.07,6.8424]
[1750832682727,14.56226854,146.1,146.07,6.8424]
[1750832682929,10.21445699,146.1,146.07,6.8424]
[1750832683128,14.56226854,146.1,146.03,2.3412]
[1750832683329,10.21445699,146.1,146.03,2.3412]
[1750832683529,14.56226854,146.1,146.03,2.3412]
[1750832683726,10.21445699,146.1,146.03,2.3412]
[1750832684630,10.21445699,146.1,146.07,6.8422]
[1750832686331,4.3574079,146.09,146.07,6.8422]
[1750832686527,10.21445699,146.1,146.07,6.8422]
[1750832686831,4.3574079,146.09,146.07,6.8422]
[1750832687031,6.8412,146.1,146.07,6.8422]
[1750832687231,4.3574079,146.09,146.07,6.8422]
[1750832687431,6.8412,146.1,146.07,6.8422]
[1750832687628,4.35758445,146.09,146.07,6.8422]
[1750832687827,6.8412,146.1,146.07,6.8422]
[1750832688129,4.35758445,146.09,146.07,6.8422]
[1750832688332,6.8412,146.1,146.07,6.8422]
[1750832688531,4.35775436,146.09,146.07,6.8422]
[1750832688731,6.8412,146.1,146.07,6.8422]
[1750832688930,4.35775439,146.09,146.07,6.8422]
[1750832689133,6.8412,146.1,146.07,6.8422]
[1750832689336,4.37010895,146.09,146.07,6.8422]
[1750832689528,6.8412,146.1,146.07,6.8422]
[1750832689731,4.37010896,146.09,146.07,6.8422]
[1750832690028,6.8412,146.1,146.07,6.8422]
[1750832690228,4.37010896,146.09,146.07,6.8422]
[1750832690424,3.37325699,146.09,146.03,2.3412]
[1750832690628,4.37025516,146.08,146.03,2.3412]
[1750832690838,4.37025516,146.07,146.03,2.3412]
[1750832691040,41.5421,146.08,146.05,6.8431]
[1750832691342,4.37315643,146.07,146.05,6.8431]
[1750832691534,41.5421,146.08,146.05,6.8431]
[1750832691831,4.37305694,146.07,146.05,6.8431]
[1750832692032,41.5421,146.08,146.05,6.8431]
[1750832692235,6.53232217,146.07,146.05,6.8431]
[1750832692539,6.53220335,146.06,146.04,6.8438]
[1750832692740,2.15926523,146.06,146.04,6.8438]
[1750832692936,13.37615843,146.05,146.01,34.7]
[1750832693126,2.15942384,146.05,146.01,36.85942384]
[1750832693930,2.15942384,146.05,146.03,6.8441]
[1750832694334,6.8432,146.06,146.03,6.8441]
[1750832694534,4.37108196,146.05,146.03,6.8441]
[1750832694734,6.8432,146.06,146.03,6.8441]
[1750832694935,4.37109657,146.05,146.03,6.8441]
[1750832695134,6.8432,146.06,146.03,6.8441]
[1750832695437,4.37021433,146.05,146.04,6.8439]
[1750832696338,3.37452387,146.07,146.05,6.8432]
[1750832696538,4.36970003,146.06,146.05,6.8432]
[1750832697534,34.7,146.08,146.02,2.3729]
[1750832697741,4.36941086,146.07,146.03,3.37452387]
[1750832697936,34.7,146.08,146.03,3.37452387]
[1750832698133,4.36940033,146.07,146.06,6.8425]
[1750832698329,34.7,146.08,146.06,6.8425]
[1750832699743,4.36969281,146.07,146.02,2.3729]
[1750832699941,34.7,146.08,146.02,2.3729]
[1750832700129,4.3697262,146.07,146.02,2.3729]
[1750832700330,34.7,146.08,146.05,6.8433]
[1750832700534,4.3697262,146.07,146.05,6.8433]
[1750832700729,34.7,146.08,146.05,6.8433]
[1750832700730,41.5422,146.08,146.05,6.8433]
[1750832701030,4.36967263,146.07,146.05,6.8433]
[1750832701230,41.5422,146.08,146.05,6.8433]
[1750832701442,4.36966629,146.07,146.05,6.8433]
[1750832701638,41.5422,146.08,146.05,6.8433]
[1750832701835,4.36974085,146.07,146.05,6.8433]
[1750832702036,41.5422,146.08,146.05,6.8433]
[1750832702237,4.36974085,146.07,146.05,6.8433]
[1750832702437,41.5422,146.08,146.05,6.8433]
[1750832702638,11.21239341,146.07,146.05,6.8433]
[1750832702837,6.8426,146.07,146.05,6.8433]
[1750832703341,4.3700272,146.06,146.05,6.8433]
[1750832703537,6.8426,146.07,146.05,6.8433]
[1750832703750,4.95113461,146.06,146.05,6.8433]
[1750832704134,6.8426,146.07,146.05,6.8433]
[1750832704336,9.37761363,146.06,146.05,6.8433]
[1750832704847,5.01050904,146.06,146.05,6.8433]
[1750832705532,5.01056948,146.06,146.05,6.8433]
[1750832706350,11.85356948,146.06,146.02,2.3729]
[1750832706541,5.01056948,146.05,146.02,2.3729]
[1750832706843,6.843,146.06,146.04,6.8439]
[1750832707043,6.8427,146.07,146.04,6.8439]
[1750832707243,5.01066383,146.06,146.02,2.3729]
[1750832707440,5.01066383,146.05,146.03,6.8441]
[1750832707646,6.8432,146.06,146.03,6.8441]
[1750832707847,5.01115498,146.05,146.03,6.8441]
[1750832708048,6.8432,146.06,146.03,6.8441]
[1750832708248,5.01114529,146.05,146.03,6.8441]
[1750832708440,6.8432,146.06,146.03,6.8441]
[1750832708640,5.01101922,146.05,146.03,6.8441]
[1750832708935,6.8432,146.06,146.03,6.8441]
[1750832709141,5.01101406,146.05,146.03,6.8441]
[1750832709340,5.01101146,146.04,146.02,6.8446]
[1750832709540,4.36426571,146.06,146.02,6.8446]
[1750832709843,6.8438,146.05,146.02,6.8446]
[1750832710043,5.01127172,146.04,146.02,6.8446]
[1750832710247,3.37452387,146.07,146.01,6.8451]
[1750832710448,6.8437,146.05,145.99,2.3519]
[1750832710648,5.01127687,146.04,145.99,5.72642387]
[1750832710848,6.8437,146.05,146.02,6.8447]
[1750832711037,5.00683083,146.04,146.02,6.8447]
[1750832711241,6.8437,146.05,146.02,6.8447]
[1750832711447,5.00683855,146.04,146.02,6.8447]
[1750832711646,6.8437,146.05,146.02,6.8447]
[1750832711842,5.0068015,146.04,146.02,6.8447]
[1750832712044,6.8437,146.05,146.02,6.8447]
[1750832712343,5.0068015,146.04,146.02,6.8447]
[1750832712647,6.8439,146.04,146.01,6.8451]
[1750832712850,5.0066587,146.03,146.01,6.8451]
[1750832713048,6.8444,146.03,146.0,6.8456]
[1750832713858,5.00697534,146.02,146.0,6.8456]